[Event "Titled Tuesday Blitz April 19 Early 2022"]
[White "Thomas, Anysia"]
[Black "Avramidou, Anastasia"]
[WhiteFideId "670472"]
[BlackFideId "4239873"]
[WhiteElo "2002"]
[BlackElo "2183"]
[Result "0-1"]
[Round "02"]
[TimeControl "180+1"]
[Date "2022.04.19"]
[WhiteClock "0:00:03"]
[BlackClock "0:00:17"]

1. d4 {[%clk 0:02:27]}  Nf6 {[%clk 0:02:58]} 2. c4 {[%clk 0:02:17]}  e6 {[%clk 0:02:56]} 3. Nf3 {[%clk 0:02:16]}  c5 {[%clk 0:02:55]} 4. d5 {[%clk 0:02:15]}  exd5 {[%clk 0:02:55]} 5. cxd5 {[%clk 0:02:16]}  d6 {[%clk 0:02:56]} 6. g3 {[%clk 0:02:15]}  g6 {[%clk 0:02:56]} 7. Bg2 {[%clk 0:02:14]}  Bg7 {[%clk 0:02:57]} 8. O-O {[%clk 0:02:15]}  O-O {[%clk 0:02:58]} 9. Nc3 {[%clk 0:02:14]}  Na6 {[%clk 0:02:58]} 10. Nd2 {[%clk 0:02:09]}  Nc7 {[%clk 0:02:58]} 11. Nc4 {[%clk 0:02:09]}  b5 {[%clk 0:02:50]} 12. Nxd6 {[%clk 0:02:04]}  Qxd6 {[%clk 0:02:50]} 13. Bf4 {[%clk 0:02:05]}  Qb6 {[%clk 0:02:01]} 14. d6 {[%clk 0:01:58]}  Bb7 {[%clk 0:01:35]} 15. Bxb7 {[%clk 0:01:55]}  Qxb7 {[%clk 0:01:36]} 16. dxc7 {[%clk 0:01:56]}  b4 {[%clk 0:01:37]} 17. Na4 {[%clk 0:01:51]}  Ne4 {[%clk 0:01:15]} 18. Rc1 {[%clk 0:01:42]}  g5 {[%clk 0:01:14]} 19. Be3 {[%clk 0:01:28]}  Qxc7 {[%clk 0:01:05]} 20. Nxc5 {[%clk 0:01:28]}  Nxc5 {[%clk 0:01:05]} 21. Rxc5 {[%clk 0:01:27]}  Qe7 {[%clk 0:00:59]} 22. Rxg5 {[%clk 0:01:17]}  Rfd8 {[%clk 0:00:59]} 23. Qb3 {[%clk 0:01:10]}  h6 {[%clk 0:00:59]} 24. Rf5 {[%clk 0:01:05]}  a5 {[%clk 0:00:56]} 25. Qc4 {[%clk 0:00:51]}  Rd7 {[%clk 0:00:47]} 26. Qg4 {[%clk 0:00:50]}  Kh8 {[%clk 0:00:45]} 27. Rh5 {[%clk 0:00:43]}  Ra6 {[%clk 0:00:45]} 28. Rc1 {[%clk 0:00:31]}  Rg6 {[%clk 0:00:42]} 29. Qf5 {[%clk 0:00:28]}  a4 {[%clk 0:00:28]} 30. Kg2 {[%clk 0:00:21]}  Qe6 {[%clk 0:00:18]} 31. Qf4 {[%clk 0:00:18]}  Kh7 {[%clk 0:00:18]} 32. Rc4 {[%clk 0:00:15]}  a3 {[%clk 0:00:17]} 33. bxa3 {[%clk 0:00:12]}  bxa3 {[%clk 0:00:18]} 34. Re4 {[%clk 0:00:12]}  Qc6 {[%clk 0:00:17]} 35. Qf3 {[%clk 0:00:10]}  Qe6 {[%clk 0:00:16]} 36. Rf4 {[%clk 0:00:10]}  Qxa2 {[%clk 0:00:15]} 37. Rxf7 {[%clk 0:00:09]}  Qxf7 {[%clk 0:00:15]} 38. Qa8 {[%clk 0:00:04]}  a2 {[%clk 0:00:14]} 39. h4 {[%clk 0:00:04]}  a1=Q {[%clk 0:00:14]} 40. Qxa1 {[%clk 0:00:03]}  Bxa1 {[%clk 0:00:15]} 41. Bf4 {[%clk 0:00:02]}  Bg7 {[%clk 0:00:15]} 42. e3 {[%clk 0:00:01]}  Rd5 {[%clk 0:00:16]} 43. Rxd5 {[%clk 0:00:01]}  Qxd5+ {[%clk 0:00:16]} 44. Kh2 {[%clk 0:00:02]}  Rf6 {[%clk 0:00:17]} 45. h5 {[%clk 0:00:03]}  Qxh5+ {[%clk 0:00:16]} 46. Kg2 {[%clk 0:00:03]}  Qd5+ {[%clk 0:00:17]} 47. Kh2 {[%clk 0:00:03]}  Rc6 {[%clk 0:00:17]} 0-1


[Site "https://www.chess.com"]

[Event "Titled Tuesday Blitz April 19 Early 2022"]
[White "Toncheva, Nadya"]
[Black "Mangialardo, Tiago Carvalho"]
[WhiteFideId "2924056"]
[BlackFideId "2130718"]
[WhiteElo "1884"]
[BlackElo "2038"]
[Result "1-0"]
[Round "02"]
[TimeControl "180+1"]
[Date "2022.04.19"]
[WhiteClock "0:01:21"]
[BlackClock "0:00:02"]

1. e4 {[%clk 0:03:00]}  Nf6 {[%clk 0:03:00]} 2. e5 {[%clk 0:03:00]}  Nd5 {[%clk 0:03:01]} 3. c4 {[%clk 0:03:00]}  Nb6 {[%clk 0:03:01]} 4. d4 {[%clk 0:03:00]}  d6 {[%clk 0:03:01]} 5. exd6 {[%clk 0:03:01]}  exd6 {[%clk 0:03:02]} 6. Nf3 {[%clk 0:03:01]}  Bg4 {[%clk 0:03:02]} 7. Be2 {[%clk 0:03:01]}  Be7 {[%clk 0:03:02]} 8. Nc3 {[%clk 0:03:01]}  O-O {[%clk 0:03:02]} 9. Be3 {[%clk 0:03:01]}  Nc6 {[%clk 0:03:02]} 10. b3 {[%clk 0:03:00]}  d5 {[%clk 0:02:55]} 11. c5 {[%clk 0:02:59]}  Nc8 {[%clk 0:02:55]} 12. h3 {[%clk 0:02:59]}  Bh5 {[%clk 0:02:55]} 13. Rb1 {[%clk 0:02:54]}  a5 {[%clk 0:02:50]} 14. a3 {[%clk 0:02:54]}  Bf6 {[%clk 0:02:35]} 15. b4 {[%clk 0:02:53]}  axb4 {[%clk 0:02:34]} 16. axb4 {[%clk 0:02:53]}  Ra3 {[%clk 0:01:48]} 17. Qd2 {[%clk 0:02:43]}  Bg6 {[%clk 0:01:39]} 18. Bd3 {[%clk 0:02:37]}  Bxd3 {[%clk 0:01:16]} 19. Qxd3 {[%clk 0:02:38]}  Qd7 {[%clk 0:00:46]} 20. O-O {[%clk 0:02:34]}  N8e7 {[%clk 0:00:45]} 21. Qd2 {[%clk 0:02:11]}  Rfa8 {[%clk 0:00:42]} 22. Rfe1 {[%clk 0:01:53]}  Nf5 {[%clk 0:00:22]} 23. g4 {[%clk 0:01:49]}  Nxe3 {[%clk 0:00:20]} 24. Rxe3 {[%clk 0:01:50]}  h5 {[%clk 0:00:19]} 25. g5 {[%clk 0:01:45]}  Be7 {[%clk 0:00:04]} 26. Kg2 {[%clk 0:01:42]}  Qf5 {[%clk 0:00:03]} 27. Rbe1 {[%clk 0:01:31]}  Bxg5 {[%clk 0:00:03]} 28. Re8+ {[%clk 0:01:31]}  Rxe8 {[%clk 0:00:02]} 29. Rxe8+ {[%clk 0:01:31]}  Kh7 {[%clk 0:00:03]} 30. Nxg5+ {[%clk 0:01:27]}  Kg6 {[%clk 0:00:04]} 31. Nf3 {[%clk 0:01:23]}  Nxb4 {[%clk 0:00:03]} 32. Nh4+ {[%clk 0:01:21]}  Kf6 {[%clk 0:00:02]} 33. Nxf5 {[%clk 0:01:21]} 1-0


[Site "https://www.chess.com"]

[Event "Titled Tuesday Blitz April 19 Early 2022"]
[White "Urazayev, Arystanbek"]
[Black "Kadam, Om Manish"]
[WhiteFideId "13709810"]
[BlackFideId "45076294"]
[WhiteElo "2422"]
[BlackElo "1729"]
[Result "0-1"]
[Round "02"]
[TimeControl "180+1"]
[Date "2022.04.19"]
[WhiteClock "0:00:04"]
[BlackClock "0:00:19"]

1. d4 {[%clk 0:03:00]}  Nf6 {[%clk 0:02:59]} 2. c4 {[%clk 0:03:01]}  g6 {[%clk 0:02:59]} 3. Nc3 {[%clk 0:03:01]}  d5 {[%clk 0:03:00]} 4. cxd5 {[%clk 0:03:01]}  Nxd5 {[%clk 0:03:01]} 5. e4 {[%clk 0:03:02]}  Nxc3 {[%clk 0:03:01]} 6. bxc3 {[%clk 0:03:03]}  Bg7 {[%clk 0:03:02]} 7. Bc4 {[%clk 0:03:03]}  c5 {[%clk 0:03:02]} 8. Ne2 {[%clk 0:03:03]}  Nc6 {[%clk 0:03:02]} 9. Be3 {[%clk 0:03:04]}  O-O {[%clk 0:03:03]} 10. h4 {[%clk 0:03:04]}  h5 {[%clk 0:02:58]} 11. O-O {[%clk 0:02:45]}  a6 {[%clk 0:02:53]} 12. dxc5 {[%clk 0:02:38]}  Ne5 {[%clk 0:02:38]} 13. Bd5 {[%clk 0:02:33]}  e6 {[%clk 0:02:37]} 14. Bb3 {[%clk 0:02:26]}  Bd7 {[%clk 0:02:35]} 15. Bg5 {[%clk 0:02:21]}  Qc8 {[%clk 0:02:29]} 16. Qd6 {[%clk 0:02:16]}  Bb5 {[%clk 0:02:28]} 17. Rfe1 {[%clk 0:02:06]}  Nd3 {[%clk 0:02:24]} 18. c4 {[%clk 0:01:43]}  Nxe1 {[%clk 0:02:19]} 19. Rxe1 {[%clk 0:01:43]}  Bc6 {[%clk 0:02:13]} 20. e5 {[%clk 0:01:43]}  Re8 {[%clk 0:02:07]} 21. Ng3 {[%clk 0:01:33]}  Bf8 {[%clk 0:02:03]} 22. Qd4 {[%clk 0:01:33]}  Qd7 {[%clk 0:02:03]} 23. Qxd7 {[%clk 0:01:29]}  Bxd7 {[%clk 0:02:04]} 24. Ne4 {[%clk 0:01:29]}  Bc6 {[%clk 0:01:46]} 25. Nf6+ {[%clk 0:01:23]}  Kg7 {[%clk 0:01:46]} 26. Nxe8+ {[%clk 0:01:20]}  Rxe8 {[%clk 0:01:47]} 27. Be3 {[%clk 0:01:19]}  Rd8 {[%clk 0:01:47]} 28. f3 {[%clk 0:01:12]}  Rd3 {[%clk 0:01:45]} 29. Kf2 {[%clk 0:01:12]}  Be7 {[%clk 0:01:36]} 30. g3 {[%clk 0:01:06]}  a5 {[%clk 0:01:33]} 31. Rd1 {[%clk 0:01:03]}  Rc3 {[%clk 0:01:15]} 32. Ke2 {[%clk 0:00:35]}  a4 {[%clk 0:01:14]} 33. Kd2 {[%clk 0:00:36]}  Rxe3 {[%clk 0:01:09]} 34. Kxe3 {[%clk 0:00:36]}  Bxc5+ {[%clk 0:01:08]} 35. Ke2 {[%clk 0:00:36]}  axb3 {[%clk 0:01:08]} 36. axb3 {[%clk 0:00:37]}  Be7 {[%clk 0:00:56]} 37. f4 {[%clk 0:00:32]}  Kf8 {[%clk 0:00:56]} 38. Ra1 {[%clk 0:00:31]}  Bc5 {[%clk 0:00:52]} 39. Rb1 {[%clk 0:00:25]}  Bb4 {[%clk 0:00:51]} 40. Rd1 {[%clk 0:00:23]}  Ke7 {[%clk 0:00:50]} 41. Rd4 {[%clk 0:00:21]}  Bc5 {[%clk 0:00:47]} 42. Rd1 {[%clk 0:00:20]}  Be4 {[%clk 0:00:45]} 43. Rd2 {[%clk 0:00:19]}  Bf5 {[%clk 0:00:45]} 44. Kf1 {[%clk 0:00:17]}  Bh3+ {[%clk 0:00:44]} 45. Ke2 {[%clk 0:00:17]}  Bg2 {[%clk 0:00:42]} 46. Ra2 {[%clk 0:00:15]}  Be4 {[%clk 0:00:40]} 47. Ra5 {[%clk 0:00:14]}  Bg1 {[%clk 0:00:35]} 48. c5 {[%clk 0:00:13]}  Bd5 {[%clk 0:00:34]} 49. b4 {[%clk 0:00:13]}  Bd4 {[%clk 0:00:31]} 50. Kd3 {[%clk 0:00:11]}  Bf2 {[%clk 0:00:30]} 51. Ra7 {[%clk 0:00:12]}  Bxg3 {[%clk 0:00:29]} 52. b5 {[%clk 0:00:11]}  Kd8 {[%clk 0:00:28]} 53. c6 {[%clk 0:00:11]}  bxc6 {[%clk 0:00:25]} 54. b6 {[%clk 0:00:12]}  Kc8 {[%clk 0:00:25]} 55. Rxf7 {[%clk 0:00:11]}  Bxh4 {[%clk 0:00:24]} 56. Rg7 {[%clk 0:00:09]}  Bg3 {[%clk 0:00:24]} 57. f5 {[%clk 0:00:06]}  exf5 {[%clk 0:00:20]} 58. Kd4 {[%clk 0:00:07]}  Bf2+ {[%clk 0:00:20]} 59. Kd3 {[%clk 0:00:06]}  Bxb6 {[%clk 0:00:21]} 60. Rxg6 {[%clk 0:00:07]}  f4 {[%clk 0:00:21]} 61. e6 {[%clk 0:00:07]}  f3 {[%clk 0:00:22]} 62. Rg8+ {[%clk 0:00:07]}  Kc7 {[%clk 0:00:19]} 63. e7 {[%clk 0:00:07]}  Bf7 {[%clk 0:00:19]} 64. e8=Q {[%clk 0:00:06]}  Bxe8 {[%clk 0:00:19]} 65. Rxe8 {[%clk 0:00:07]}  f2 {[%clk 0:00:20]} 66. Ke2 {[%clk 0:00:08]}  Bd4 {[%clk 0:00:20]} 67. Re4 {[%clk 0:00:08]}  c5 {[%clk 0:00:19]} 68. Rh4 {[%clk 0:00:07]}  Kd6 {[%clk 0:00:18]} 69. Rxh5 {[%clk 0:00:08]}  c4 {[%clk 0:00:19]} 70. Rh6+ {[%clk 0:00:07]}  Kc5 {[%clk 0:00:19]} 71. Rh5+ {[%clk 0:00:07]}  Kb4 {[%clk 0:00:19]} 72. Rh4 {[%clk 0:00:07]}  Bc5 {[%clk 0:00:19]} 73. Rf4 {[%clk 0:00:06]}  Kb3 {[%clk 0:00:19]} 74. Rf5 {[%clk 0:00:06]}  Bd4 {[%clk 0:00:19]} 75. Rd5 {[%clk 0:00:05]}  c3 {[%clk 0:00:17]} 76. Rxd4 {[%clk 0:00:06]}  c2 {[%clk 0:00:17]} 77. Rd3+ {[%clk 0:00:06]}  Kb4 {[%clk 0:00:18]} 78. Rd4+ {[%clk 0:00:06]}  Kb5 {[%clk 0:00:18]} 79. Rd5+ {[%clk 0:00:03]}  Kb6 {[%clk 0:00:19]} 80. Rd6+ {[%clk 0:00:03]}  Kb7 {[%clk 0:00:19]} 81. Kxf2 {[%clk 0:00:03]}  c1=Q {[%clk 0:00:19]} 82. Rd7+ {[%clk 0:00:03]}  Kc6 {[%clk 0:00:19]} 83. Rd3 {[%clk 0:00:03]}  Kc5 {[%clk 0:00:19]} 84. Re3 {[%clk 0:00:03]}  Kd4 {[%clk 0:00:19]} 85. Re2 {[%clk 0:00:03]}  Kd3 {[%clk 0:00:20]} 86. Re1 {[%clk 0:00:02]}  Qf4+ {[%clk 0:00:20]} 87. Kg2 {[%clk 0:00:03]}  Kd2 {[%clk 0:00:20]} 88. Rf1 {[%clk 0:00:03]}  Qg4+ {[%clk 0:00:21]} 89. Kh2 {[%clk 0:00:03]}  Ke2 {[%clk 0:00:21]} 90. Rg1 {[%clk 0:00:04]}  Qh4+ {[%clk 0:00:21]} 91. Kg2 {[%clk 0:00:04]}  Ke3 {[%clk 0:00:20]} 92. Rf1 {[%clk 0:00:03]}  Qg4+ {[%clk 0:00:20]} 93. Kh1 {[%clk 0:00:04]}  Qh3+ {[%clk 0:00:20]} 94. Kg1 {[%clk 0:00:04]}  Qg3+ {[%clk 0:00:20]} 95. Kh1 {[%clk 0:00:04]}  Ke4 {[%clk 0:00:19]} 0-1


[Site "https://www.chess.com"]

[Event "Titled Tuesday Blitz April 19 Early 2022"]
[White "Valle Maytin, Luis Enrique"]
[Black "Skliarov, Viktor"]
[WhiteFideId "3503666"]
[BlackFideId "14106736"]
[WhiteElo "2308"]
[BlackElo "2229"]
[Result "0-1"]
[Round "02"]
[TimeControl "180+1"]
[Date "2022.04.19"]
[WhiteClock "0:00:11"]
[BlackClock "0:00:11"]

1. e4 {[%clk 0:03:00]}  c5 {[%clk 0:02:59]} 2. Nf3 {[%clk 0:03:00]}  Nc6 {[%clk 0:03:00]} 3. d4 {[%clk 0:03:00]}  cxd4 {[%clk 0:03:01]} 4. Nxd4 {[%clk 0:03:01]}  Nf6 {[%clk 0:03:01]} 5. Nc3 {[%clk 0:03:01]}  e5 {[%clk 0:03:02]} 6. Ndb5 {[%clk 0:03:00]}  d6 {[%clk 0:03:02]} 7. Bg5 {[%clk 0:02:59]}  a6 {[%clk 0:03:00]} 8. Na3 {[%clk 0:02:58]}  b5 {[%clk 0:03:00]} 9. Bxf6 {[%clk 0:02:57]}  gxf6 {[%clk 0:03:00]} 10. Nd5 {[%clk 0:02:57]}  f5 {[%clk 0:03:01]} 11. c4 {[%clk 0:02:57]}  b4 {[%clk 0:02:56]} 12. Nc2 {[%clk 0:02:56]}  fxe4 {[%clk 0:02:56]} 13. Ncxb4 {[%clk 0:02:56]}  Nxb4 {[%clk 0:02:54]} 14. Nxb4 {[%clk 0:02:56]}  Qa5 {[%clk 0:02:54]} 15. a3 {[%clk 0:02:47]}  d5 {[%clk 0:02:05]} 16. Qd2 {[%clk 0:02:37]}  d4 {[%clk 0:01:56]} 17. Nd5 {[%clk 0:02:24]}  Qxd2+ {[%clk 0:01:40]} 18. Kxd2 {[%clk 0:02:25]}  Kd8 {[%clk 0:01:40]} 19. Be2 {[%clk 0:02:03]}  Bh6+ {[%clk 0:01:37]} 20. Kd1 {[%clk 0:01:58]}  f5 {[%clk 0:01:17]} 21. g3 {[%clk 0:01:34]}  Rg8 {[%clk 0:01:11]} 22. Re1 {[%clk 0:01:33]}  f4 {[%clk 0:01:05]} 23. Nf6 {[%clk 0:01:25]}  Rf8 {[%clk 0:00:44]} 24. Nxe4 {[%clk 0:01:23]}  fxg3 {[%clk 0:00:45]} 25. fxg3 {[%clk 0:01:14]}  Bh3 {[%clk 0:00:34]} 26. Kc2 {[%clk 0:01:01]}  Kc7 {[%clk 0:00:35]} 27. Bd3 {[%clk 0:00:58]}  Rf7 {[%clk 0:00:32]} 28. b4 {[%clk 0:00:49]}  Raf8 {[%clk 0:00:32]} 29. Nc5 {[%clk 0:00:48]}  Rf2+ {[%clk 0:00:26]} 30. Kb3 {[%clk 0:00:48]}  Kd6 {[%clk 0:00:12]} 31. Ne4+ {[%clk 0:00:47]}  Ke6 {[%clk 0:00:12]} 32. Nxf2 {[%clk 0:00:48]}  Rxf2 {[%clk 0:00:12]} 33. Bxh7 {[%clk 0:00:43]}  Bd2 {[%clk 0:00:12]} 34. Re4 {[%clk 0:00:38]}  Rxh2 {[%clk 0:00:11]} 35. Rh4 {[%clk 0:00:34]}  Bg5 {[%clk 0:00:10]} 36. Rh5 {[%clk 0:00:31]}  Bf6 {[%clk 0:00:06]} 37. Bf5+ {[%clk 0:00:28]}  Bxf5 {[%clk 0:00:06]} 38. Rxh2 {[%clk 0:00:27]}  e4 {[%clk 0:00:06]} 39. Rf1 {[%clk 0:00:24]}  e3 {[%clk 0:00:05]} 40. Rh6 {[%clk 0:00:20]}  e2 {[%clk 0:00:04]} 41. Re1 {[%clk 0:00:20]}  d3 {[%clk 0:00:05]} 42. Rh2 {[%clk 0:00:20]}  Bg4 {[%clk 0:00:04]} 43. c5 {[%clk 0:00:13]}  Kd5 {[%clk 0:00:05]} 44. c6 {[%clk 0:00:13]}  Kxc6 {[%clk 0:00:05]} 45. Kc4 {[%clk 0:00:14]}  d2 {[%clk 0:00:04]} 46. Rhxe2 {[%clk 0:00:14]}  Bxe2+ {[%clk 0:00:04]} 47. Rxe2 {[%clk 0:00:14]}  d1=Q {[%clk 0:00:04]} 48. Re6+ {[%clk 0:00:14]}  Kd7 {[%clk 0:00:05]} 49. Rxf6 {[%clk 0:00:15]}  Qc2+ {[%clk 0:00:05]} 50. Kd5 {[%clk 0:00:15]}  Qd3+ {[%clk 0:00:05]} 51. Ke5 {[%clk 0:00:16]}  Qxg3+ {[%clk 0:00:05]} 52. Rf4 {[%clk 0:00:16]}  Qxa3 {[%clk 0:00:05]} 53. Rd4+ {[%clk 0:00:16]}  Kc6 {[%clk 0:00:05]} 54. Rd6+ {[%clk 0:00:16]}  Kb5 {[%clk 0:00:06]} 55. Rd4 {[%clk 0:00:16]}  Qxb4 {[%clk 0:00:06]} 56. Rd7 {[%clk 0:00:09]}  Qc5+ {[%clk 0:00:05]} 57. Ke6 {[%clk 0:00:07]}  Qc6+ {[%clk 0:00:06]} 58. Rd6 {[%clk 0:00:07]}  Qxd6+ {[%clk 0:00:06]} 59. Kxd6 {[%clk 0:00:08]}  a5 {[%clk 0:00:07]} 60. Kd5 {[%clk 0:00:09]}  Kb4 {[%clk 0:00:08]} 61. Kd4 {[%clk 0:00:10]}  Kb3 {[%clk 0:00:08]} 62. Kd3 {[%clk 0:00:10]}  Kb2 {[%clk 0:00:09]} 63. Kc4 {[%clk 0:00:11]}  a4 {[%clk 0:00:10]} 64. Kb4 {[%clk 0:00:11]}  a3 {[%clk 0:00:11]} 0-1


[Site "https://www.chess.com"]

[Event "Titled Tuesday Blitz April 19 Early 2022"]
[White "Vetokhin, Ilia"]
[Black "Friedel, Tom"]
[WhiteFideId "24156078"]
[BlackFideId "2002108"]
[WhiteElo "1897"]
[BlackElo "2315"]
[Result "1-0"]
[Round "02"]
[TimeControl "180+1"]
[Date "2022.04.19"]
[WhiteClock "0:00:15"]
[BlackClock "0:00:06"]

1. d4 {[%clk 0:03:00]}  d5 {[%clk 0:02:59]} 2. c4 {[%clk 0:03:01]}  e6 {[%clk 0:02:59]} 3. g3 {[%clk 0:03:01]}  Nf6 {[%clk 0:02:59]} 4. Bg2 {[%clk 0:03:02]}  Be7 {[%clk 0:02:59]} 5. Nf3 {[%clk 0:03:03]}  O-O {[%clk 0:03:00]} 6. O-O {[%clk 0:03:03]}  Nbd7 {[%clk 0:02:54]} 7. Nc3 {[%clk 0:03:02]}  dxc4 {[%clk 0:02:54]} 8. e4 {[%clk 0:02:54]}  Nb6 {[%clk 0:02:52]} 9. Qe2 {[%clk 0:02:51]}  Bd7 {[%clk 0:02:44]} 10. Rd1 {[%clk 0:02:48]}  Bc6 {[%clk 0:02:37]} 11. Ne5 {[%clk 0:02:44]}  Nfd7 {[%clk 0:02:36]} 12. Nxc4 {[%clk 0:02:32]}  Nxc4 {[%clk 0:02:25]} 13. Qxc4 {[%clk 0:02:33]}  Nb6 {[%clk 0:02:26]} 14. Qe2 {[%clk 0:02:31]}  Re8 {[%clk 0:01:58]} 15. Bf4 {[%clk 0:02:28]}  Bg5 {[%clk 0:01:48]} 16. Be3 {[%clk 0:02:26]}  Bxe3 {[%clk 0:01:44]} 17. Qxe3 {[%clk 0:02:27]}  Qe7 {[%clk 0:01:40]} 18. Qe2 {[%clk 0:02:18]}  Rad8 {[%clk 0:01:39]} 19. a3 {[%clk 0:02:16]}  h6 {[%clk 0:01:38]} 20. h4 {[%clk 0:02:11]}  a6 {[%clk 0:01:31]} 21. Rac1 {[%clk 0:02:10]}  Qf6 {[%clk 0:01:28]} 22. e5 {[%clk 0:02:03]}  Qe7 {[%clk 0:01:17]} 23. Bxc6 {[%clk 0:02:02]}  bxc6 {[%clk 0:01:18]} 24. Ne4 {[%clk 0:02:03]}  Rd5 {[%clk 0:01:00]} 25. Rxc6 {[%clk 0:01:26]}  Red8 {[%clk 0:00:59]} 26. Rdc1 {[%clk 0:01:26]}  a5 {[%clk 0:00:42]} 27. Rxc7 {[%clk 0:01:24]}  Qe8 {[%clk 0:00:42]} 28. Nd6 {[%clk 0:01:22]}  Qa4 {[%clk 0:00:35]} 29. Nxf7 {[%clk 0:01:15]}  Rf8 {[%clk 0:00:35]} 30. Nxh6+ {[%clk 0:01:09]}  Kh7 {[%clk 0:00:15]} 31. Qg4 {[%clk 0:01:01]}  Nd7 {[%clk 0:00:08]} 32. R1c4 {[%clk 0:00:35]}  Qb3 {[%clk 0:00:06]} 33. Qe4+ {[%clk 0:00:20]}  Kxh6 {[%clk 0:00:05]} 34. Rc3 {[%clk 0:00:16]}  Qb6 {[%clk 0:00:03]} 35. R7c6 {[%clk 0:00:16]}  Qxd4 {[%clk 0:00:03]} 36. Qxd4 {[%clk 0:00:16]}  Rxd4 {[%clk 0:00:04]} 37. Rxe6+ {[%clk 0:00:17]}  Kh7 {[%clk 0:00:03]} 38. Re7 {[%clk 0:00:17]}  Nb6 {[%clk 0:00:02]} 39. Rcc7 {[%clk 0:00:16]}  Nd5 {[%clk 0:00:01]} 40. Rxg7+ {[%clk 0:00:16]}  Kh6 {[%clk 0:00:01]} 41. Rh7+ {[%clk 0:00:16]}  Kg6 {[%clk 0:00:02]} 42. Rcg7+ {[%clk 0:00:17]}  Kf5 {[%clk 0:00:03]} 43. Rg5+ {[%clk 0:00:14]}  Ke4 {[%clk 0:00:03]} 44. e6 {[%clk 0:00:14]}  Rd1+ {[%clk 0:00:02]} 45. Kg2 {[%clk 0:00:15]}  Rd2 {[%clk 0:00:03]} 46. Rg4+ {[%clk 0:00:14]}  Kd3 {[%clk 0:00:03]} 47. Rf4 {[%clk 0:00:14]}  Rxf4 {[%clk 0:00:03]} 48. gxf4 {[%clk 0:00:15]}  Nxf4+ {[%clk 0:00:04]} 49. Kf3 {[%clk 0:00:15]}  Nxe6 {[%clk 0:00:05]} 50. Rd7+ {[%clk 0:00:16]}  Nd4+ {[%clk 0:00:05]} 51. Kf4 {[%clk 0:00:16]}  Rxb2 {[%clk 0:00:06]} 52. Ke5 {[%clk 0:00:15]}  Rxf2 {[%clk 0:00:06]} 53. Rxd4+ {[%clk 0:00:16]}  Kc3 {[%clk 0:00:06]} 54. Rg4 {[%clk 0:00:15]}  Rh2 {[%clk 0:00:07]} 55. Kf5 {[%clk 0:00:15]}  Kb3 {[%clk 0:00:07]} 56. a4 {[%clk 0:00:15]}  Rf2+ {[%clk 0:00:06]} 57. Kg5 {[%clk 0:00:15]}  Ra2 {[%clk 0:00:05]} 58. h5 {[%clk 0:00:16]}  Rc2 {[%clk 0:00:02]} 59. h6 {[%clk 0:00:16]}  Rc5+ {[%clk 0:00:03]} 60. Kg6 {[%clk 0:00:14]}  Rc6+ {[%clk 0:00:03]} 61. Kh5 {[%clk 0:00:15]}  Rc5+ {[%clk 0:00:03]} 62. Rg5 {[%clk 0:00:15]}  Rc1 {[%clk 0:00:03]} 63. Rxa5 {[%clk 0:00:14]}  Rh1+ {[%clk 0:00:03]} 64. Kg6 {[%clk 0:00:14]}  Kb4 {[%clk 0:00:04]} 65. Rh5 {[%clk 0:00:13]}  Rg1+ {[%clk 0:00:04]} 66. Rg5 {[%clk 0:00:14]}  Rh1 {[%clk 0:00:04]} 67. a5 {[%clk 0:00:13]}  Ra1 {[%clk 0:00:04]} 68. h7 {[%clk 0:00:13]}  Rh1 {[%clk 0:00:05]} 69. Rh5 {[%clk 0:00:13]}  Rg1+ {[%clk 0:00:05]} 70. Rg5 {[%clk 0:00:13]}  Rh1 {[%clk 0:00:05]} 71. Kg7 {[%clk 0:00:14]}  Rh2 {[%clk 0:00:05]} 72. h8=Q {[%clk 0:00:14]}  Rxh8 {[%clk 0:00:05]} 73. Kxh8 {[%clk 0:00:15]}  Ka4 {[%clk 0:00:06]} 74. a6 {[%clk 0:00:15]} 1-0


[Site "https://www.chess.com"]

[Event "Titled Tuesday Blitz April 19 Early 2022"]
[White "Vovk, Orest"]
[Black "Harish, Neeraj"]
[WhiteFideId "14113490"]
[BlackFideId "30958130"]
[WhiteElo "2203"]
[BlackElo "1574"]
[Result "1-0"]
[Round "02"]
[TimeControl "180+1"]
[Date "2022.04.19"]
[WhiteClock "0:02:00"]
[BlackClock "0:00:29"]

1. h4 {[%clk 0:03:00]}  d5 {[%clk 0:02:55]} 2. h5 {[%clk 0:02:54]}  e5 {[%clk 0:02:50]} 3. h6 {[%clk 0:02:46]}  Nxh6 {[%clk 0:02:37]} 4. d4 {[%clk 0:02:16]}  e4 {[%clk 0:02:30]} 5. Bxh6 {[%clk 0:02:16]}  gxh6 {[%clk 0:02:31]} 6. e3 {[%clk 0:02:16]}  Bg7 {[%clk 0:02:25]} 7. Ne2 {[%clk 0:02:13]}  Bg4 {[%clk 0:02:17]} 8. c4 {[%clk 0:02:12]}  c6 {[%clk 0:02:02]} 9. Qb3 {[%clk 0:02:10]}  Qd7 {[%clk 0:01:31]} 10. Nf4 {[%clk 0:02:07]}  Na6 {[%clk 0:01:14]} 11. Nc3 {[%clk 0:02:02]}  Be6 {[%clk 0:00:29]} 12. cxd5 {[%clk 0:02:00]}  cxd5 {[%clk 0:00:29]} 13. Bb5 {[%clk 0:02:00]} 1-0


[Site "https://www.chess.com"]

[Event "Titled Tuesday Blitz April 19 Early 2022"]
[White "Winkels, Marcel"]
[Black "Popadic, Dragan"]
[WhiteFideId "1003887"]
[BlackFideId "913650"]
[WhiteElo "1900"]
[BlackElo "2203"]
[Result "0-1"]
[Round "02"]
[TimeControl "180+1"]
[Date "2022.04.19"]
[WhiteClock "0:00:11"]
[BlackClock "0:00:17"]

1. e4 {[%clk 0:03:00]}  c5 {[%clk 0:02:59]} 2. Nf3 {[%clk 0:03:00]}  Nc6 {[%clk 0:02:59]} 3. Bb5 {[%clk 0:02:58]}  e5 {[%clk 0:02:58]} 4. d3 {[%clk 0:02:53]}  d6 {[%clk 0:02:57]} 5. Nc3 {[%clk 0:02:47]}  Nf6 {[%clk 0:02:54]} 6. h3 {[%clk 0:02:44]}  Be7 {[%clk 0:02:54]} 7. O-O {[%clk 0:02:39]}  O-O {[%clk 0:02:54]} 8. Be3 {[%clk 0:02:40]}  Ne8 {[%clk 0:02:52]} 9. Bxc6 {[%clk 0:02:36]}  bxc6 {[%clk 0:02:51]} 10. Qd2 {[%clk 0:02:31]}  f5 {[%clk 0:02:49]} 11. Bg5 {[%clk 0:02:19]}  f4 {[%clk 0:02:36]} 12. Bxe7 {[%clk 0:02:17]}  Qxe7 {[%clk 0:02:35]} 13. Kh2 {[%clk 0:02:14]}  Nf6 {[%clk 0:02:25]} 14. a3 {[%clk 0:02:04]}  a5 {[%clk 0:02:24]} 15. Rg1 {[%clk 0:02:00]}  Nh5 {[%clk 0:02:19]} 16. Qe2 {[%clk 0:01:53]}  g6 {[%clk 0:02:13]} 17. g3 {[%clk 0:01:48]}  fxg3+ {[%clk 0:02:11]} 18. fxg3 {[%clk 0:01:47]}  Bd7 {[%clk 0:02:07]} 19. Raf1 {[%clk 0:01:39]}  Qe6 {[%clk 0:01:52]} 20. Ng5 {[%clk 0:01:36]}  Qe7 {[%clk 0:01:52]} 21. h4 {[%clk 0:01:18]}  h6 {[%clk 0:01:42]} 22. Nf3 {[%clk 0:01:16]}  Bg4 {[%clk 0:01:41]} 23. Qg2 {[%clk 0:01:13]}  Nf6 {[%clk 0:01:33]} 24. Nd2 {[%clk 0:01:11]}  Be6 {[%clk 0:01:31]} 25. Kh1 {[%clk 0:01:04]}  Qd7 {[%clk 0:01:26]} 26. Qe2 {[%clk 0:00:50]}  Rf7 {[%clk 0:01:16]} 27. Rf2 {[%clk 0:00:49]}  Raf8 {[%clk 0:01:16]} 28. Nc4 {[%clk 0:00:43]}  Bxc4 {[%clk 0:01:06]} 29. dxc4 {[%clk 0:00:42]}  Qh3+ {[%clk 0:01:00]} 30. Rh2 {[%clk 0:00:40]}  Qe6 {[%clk 0:01:00]} 31. Rf2 {[%clk 0:00:36]}  Nh5 {[%clk 0:00:57]} 32. Rxf7 {[%clk 0:00:33]}  Rxf7 {[%clk 0:00:57]} 33. Kh2 {[%clk 0:00:33]}  Qf6 {[%clk 0:00:49]} 34. Kg2 {[%clk 0:00:31]}  Qe6 {[%clk 0:00:47]} 35. Rf1 {[%clk 0:00:29]}  Nf6 {[%clk 0:00:46]} 36. Rf3 {[%clk 0:00:26]}  Kg7 {[%clk 0:00:45]} 37. Qf2 {[%clk 0:00:25]}  Qxc4 {[%clk 0:00:42]} 38. Qd2 {[%clk 0:00:22]}  Qd4 {[%clk 0:00:26]} 39. Rd3 {[%clk 0:00:21]}  Qc4 {[%clk 0:00:22]} 40. Rxd6 {[%clk 0:00:19]}  Nxe4 {[%clk 0:00:20]} 41. Nxe4 {[%clk 0:00:15]}  Qxe4+ {[%clk 0:00:20]} 42. Kh3 {[%clk 0:00:14]}  Qf5+ {[%clk 0:00:18]} 43. Kh2 {[%clk 0:00:13]}  Qf1 {[%clk 0:00:18]} 44. Qg2 {[%clk 0:00:11]}  Rf2 {[%clk 0:00:17]} 0-1


[Site "https://www.chess.com"]